[Event "Titled Tuesday Blitz January 10 Early 2023"]
[White "Ruge, Edison"]
[Black "Rangel, Daniel"]
[WhiteFideId "4401000"]
[BlackFideId "2124475"]
[WhiteElo "2201"]
[BlackElo "2207"]
[Result "1-0"]
[Round "01"]
[TimeControl "180+2"]
[Date "2023.01.10"]
[WhiteClock "0:00:57"]
[BlackClock "0:00:17"]

1. e4 {[%clk 0:03:00]}  c5 {[%clk 0:02:56]} 2. Nf3 {[%clk 0:03:00]}  g6 {[%clk 0:02:52]} 3. d3 {[%clk 0:03:00]}  Bg7 {[%clk 0:02:52]} 4. g3 {[%clk 0:03:01]}  Nc6 {[%clk 0:02:52]} 5. Bg2 {[%clk 0:03:02]}  d6 {[%clk 0:02:53]} 6. O-O {[%clk 0:03:02]}  e5 {[%clk 0:02:52]} 7. h4 {[%clk 0:03:01]}  Bg4 {[%clk 0:02:50]} 8. c3 {[%clk 0:03:02]}  Nge7 {[%clk 0:02:50]} 9. Qc2 {[%clk 0:02:58]}  Qd7 {[%clk 0:02:47]} 10. Re1 {[%clk 0:02:52]}  h6 {[%clk 0:02:43]} 11. Nbd2 {[%clk 0:02:52]}  f5 {[%clk 0:02:37]} 12. exf5 {[%clk 0:02:49]}  gxf5 {[%clk 0:02:38]} 13. Nh2 {[%clk 0:02:45]}  Bh5 {[%clk 0:02:35]} 14. Nc4 {[%clk 0:02:44]}  d5 {[%clk 0:02:24]} 15. Nd2 {[%clk 0:02:34]}  O-O-O {[%clk 0:02:19]} 16. Nb3 {[%clk 0:02:23]}  Qd6 {[%clk 0:02:06]} 17. Be3 {[%clk 0:02:20]}  d4 {[%clk 0:02:07]} 18. cxd4 {[%clk 0:02:19]}  cxd4 {[%clk 0:02:07]} 19. Bd2 {[%clk 0:02:17]}  Kb8 {[%clk 0:02:08]} 20. a3 {[%clk 0:02:15]}  Rc8 {[%clk 0:02:03]} 21. Qc5 {[%clk 0:02:14]}  Qd7 {[%clk 0:01:59]} 22. Qb5 {[%clk 0:02:06]}  a6 {[%clk 0:01:42]} 23. Qa4 {[%clk 0:02:03]}  Qd6 {[%clk 0:01:29]} 24. Rac1 {[%clk 0:02:02]}  Na7 {[%clk 0:01:26]} 25. Bb4 {[%clk 0:02:00]}  Qd8 {[%clk 0:01:17]} 26. Bxb7 {[%clk 0:01:55]}  Kxb7 {[%clk 0:01:10]} 27. Nc5+ {[%clk 0:01:54]}  Ka8 {[%clk 0:01:09]} 28. Qxa6 {[%clk 0:01:54]}  Rb8 {[%clk 0:01:09]} 29. Ne6 {[%clk 0:01:50]}  Rb6 {[%clk 0:00:55]} 30. Nxd8 {[%clk 0:01:42]}  Rxa6 {[%clk 0:00:55]} 31. Bxe7 {[%clk 0:01:42]}  Rb6 {[%clk 0:00:46]} 32. Rc7 {[%clk 0:01:36]}  Nb5 {[%clk 0:00:41]} 33. Rc8+ {[%clk 0:01:34]}  Ka7 {[%clk 0:00:41]} 34. Bc5 {[%clk 0:01:31]}  e4 {[%clk 0:00:22]} 35. a4 {[%clk 0:01:11]}  Nd6 {[%clk 0:00:22]} 36. Rc7+ {[%clk 0:01:05]}  Kb8 {[%clk 0:00:20]} 37. Bxb6 {[%clk 0:01:04]}  exd3 {[%clk 0:00:19]} 38. Nc6+ {[%clk 0:00:57]}  Ka8 {[%clk 0:00:17]} 39. Ra7# {[%clk 0:00:57]} 1-0


[Site "https://www.chess.com"]

[Event "Titled Tuesday Blitz January 10 Early 2023"]
[White "Kiseleva, Arina"]
[Black "Przybylski, Wojciech"]
[WhiteFideId "4164989"]
[BlackFideId "1117599"]
[WhiteElo "1962"]
[BlackElo "2321"]
[Result "0-1"]
[Round "01"]
[TimeControl "180+2"]
[Date "2023.01.10"]
[WhiteClock "0:00:05"]
[BlackClock "0:00:06"]

1. d4 {[%clk 0:02:57]}  Nf6 {[%clk 0:02:58]} 2. Nf3 {[%clk 0:02:57]}  d5 {[%clk 0:02:57]} 3. e3 {[%clk 0:02:57]}  Bg4 {[%clk 0:02:57]} 4. Be2 {[%clk 0:02:57]}  e6 {[%clk 0:02:57]} 5. Ne5 {[%clk 0:02:57]}  Bxe2 {[%clk 0:02:56]} 6. Qxe2 {[%clk 0:02:57]}  Nbd7 {[%clk 0:02:56]} 7. O-O {[%clk 0:02:56]}  a6 {[%clk 0:02:53]} 8. b3 {[%clk 0:02:55]}  Bd6 {[%clk 0:02:52]} 9. Bb2 {[%clk 0:02:54]}  O-O {[%clk 0:02:51]} 10. Nd2 {[%clk 0:02:53]}  Rc8 {[%clk 0:02:48]} 11. Ndf3 {[%clk 0:02:48]}  Ne4 {[%clk 0:02:46]} 12. Nxd7 {[%clk 0:02:48]}  Qxd7 {[%clk 0:02:46]} 13. Ne5 {[%clk 0:02:46]}  Qe8 {[%clk 0:02:44]} 14. f3 {[%clk 0:02:45]}  Nf6 {[%clk 0:02:43]} 15. Qf2 {[%clk 0:02:43]}  Nd7 {[%clk 0:02:41]} 16. Qh4 {[%clk 0:02:36]}  f6 {[%clk 0:02:38]} 17. Nd3 {[%clk 0:02:35]}  c5 {[%clk 0:02:33]} 18. dxc5 {[%clk 0:02:35]}  Nxc5 {[%clk 0:02:33]} 19. Rac1 {[%clk 0:02:29]}  b5 {[%clk 0:02:29]} 20. Kh1 {[%clk 0:02:18]}  e5 {[%clk 0:02:26]} 21. Ba3 {[%clk 0:02:08]}  Qe7 {[%clk 0:02:23]} 22. Nxc5 {[%clk 0:02:07]}  Bxc5 {[%clk 0:02:23]} 23. Bxc5 {[%clk 0:02:06]}  Qxc5 {[%clk 0:02:22]} 24. Rfe1 {[%clk 0:02:00]}  Qc3 {[%clk 0:02:19]} 25. Qh3 {[%clk 0:01:56]}  Qc6 {[%clk 0:01:55]} 26. e4 {[%clk 0:01:37]}  d4 {[%clk 0:01:55]} 27. Qg4 {[%clk 0:01:22]}  Qd6 {[%clk 0:01:52]} 28. h4 {[%clk 0:01:20]}  Rc3 {[%clk 0:01:49]} 29. h5 {[%clk 0:01:16]}  Rfc8 {[%clk 0:01:39]} 30. h6 {[%clk 0:01:13]}  g6 {[%clk 0:01:39]} 31. f4 {[%clk 0:01:09]}  exf4 {[%clk 0:01:34]} 32. Rf1 {[%clk 0:01:02]}  g5 {[%clk 0:01:22]} 33. Qf5 {[%clk 0:00:58]}  R8c5 {[%clk 0:01:13]} 34. Qg4 {[%clk 0:00:56]}  Rg3 {[%clk 0:01:07]} 35. Qh5 {[%clk 0:00:56]}  Re5 {[%clk 0:01:04]} 36. c4 {[%clk 0:00:34]}  dxc3 {[%clk 0:00:47]} 37. Rfd1 {[%clk 0:00:33]}  Qe7 {[%clk 0:00:46]} 38. Rd5 {[%clk 0:00:13]}  Rxd5 {[%clk 0:00:38]} 39. exd5 {[%clk 0:00:14]}  Rd3 {[%clk 0:00:35]} 40. d6 {[%clk 0:00:09]}  Rxd6 {[%clk 0:00:21]} 41. Rxc3 {[%clk 0:00:09]}  Qe1+ {[%clk 0:00:17]} 42. Kh2 {[%clk 0:00:09]}  Rd8 {[%clk 0:00:16]} 43. Rc7 {[%clk 0:00:08]}  Qg3+ {[%clk 0:00:15]} 44. Kh1 {[%clk 0:00:07]}  Qe1+ {[%clk 0:00:14]} 45. Kh2 {[%clk 0:00:07]}  Qh4+ {[%clk 0:00:13]} 46. Qxh4 {[%clk 0:00:07]}  gxh4 {[%clk 0:00:13]} 47. Rg7+ {[%clk 0:00:07]}  Kh8 {[%clk 0:00:13]} 48. Rf7 {[%clk 0:00:07]}  Kg8 {[%clk 0:00:11]} 49. Rxf6 {[%clk 0:00:07]}  Rd2 {[%clk 0:00:10]} 50. Rxa6 {[%clk 0:00:07]}  f3 {[%clk 0:00:10]} 51. Kh3 {[%clk 0:00:06]}  fxg2 {[%clk 0:00:09]} 52. Kh2 {[%clk 0:00:06]}  h3 {[%clk 0:00:09]} 53. Ra7 {[%clk 0:00:06]}  Rd1 {[%clk 0:00:08]} 54. Rg7+ {[%clk 0:00:06]}  Kh8 {[%clk 0:00:06]} 55. a4 {[%clk 0:00:05]}  Rh1+ {[%clk 0:00:05]} 56. Kg3 {[%clk 0:00:04]}  g1=Q+ {[%clk 0:00:05]} 57. Kh4 {[%clk 0:00:04]}  Qxg7 {[%clk 0:00:05]} 58. hxg7+ {[%clk 0:00:05]}  Kxg7 {[%clk 0:00:05]} 59. axb5 {[%clk 0:00:05]}  Rb1 {[%clk 0:00:05]} 60. Kxh3 {[%clk 0:00:05]}  Rxb3+ {[%clk 0:00:06]} 61. Kg4 {[%clk 0:00:05]}  Rxb5 {[%clk 0:00:06]} 0-1


[Site "https://www.chess.com"]

[Event "Titled Tuesday Blitz January 10 Early 2023"]
[White "Janaszak, Dawid"]
[Black "Stead, Kerry"]
[WhiteFideId "1119206"]
[BlackFideId "3202577"]
[WhiteElo "2316"]
[BlackElo "1908"]
[Result "1-0"]
[Round "01"]
[TimeControl "180+2"]
[Date "2023.01.10"]
[WhiteClock "0:00:55"]
[BlackClock "0:01:03"]

1. e4 {[%clk 0:03:00]}  c5 {[%clk 0:02:59]} 2. Nc3 {[%clk 0:02:59]}  Nf6 {[%clk 0:02:57]} 3. e5 {[%clk 0:02:56]}  Ng8 {[%clk 0:02:55]} 4. Nf3 {[%clk 0:02:51]}  d5 {[%clk 0:02:54]} 5. exd6 {[%clk 0:02:49]}  exd6 {[%clk 0:02:54]} 6. Bc4 {[%clk 0:02:49]}  Be6 {[%clk 0:02:51]} 7. Bxe6 {[%clk 0:02:46]}  fxe6 {[%clk 0:02:52]} 8. d4 {[%clk 0:02:47]}  cxd4 {[%clk 0:02:50]} 9. Nxd4 {[%clk 0:02:48]}  Qd7 {[%clk 0:02:50]} 10. O-O {[%clk 0:02:46]}  Nc6 {[%clk 0:02:46]} 11. Re1 {[%clk 0:02:41]}  e5 {[%clk 0:02:42]} 12. Nxc6 {[%clk 0:02:13]}  bxc6 {[%clk 0:02:39]} 13. f4 {[%clk 0:02:13]}  O-O-O {[%clk 0:02:19]} 14. fxe5 {[%clk 0:02:09]}  dxe5 {[%clk 0:02:07]} 15. Be3 {[%clk 0:02:08]}  Bb4 {[%clk 0:01:58]} 16. Qe2 {[%clk 0:02:02]}  Nf6 {[%clk 0:01:53]} 17. Rad1 {[%clk 0:01:56]}  Qc7 {[%clk 0:01:48]} 18. Qc4 {[%clk 0:01:44]}  Bxc3 {[%clk 0:01:42]} 19. Qxc3 {[%clk 0:01:40]}  Nd5 {[%clk 0:01:40]} 20. Qc5 {[%clk 0:01:39]}  Nxe3 {[%clk 0:01:38]} 21. Qxe3 {[%clk 0:01:40]}  Rxd1 {[%clk 0:01:37]} 22. Rxd1 {[%clk 0:01:40]}  Qb6 {[%clk 0:01:29]} 23. Qxb6 {[%clk 0:01:32]}  axb6 {[%clk 0:01:28]} 24. Rd6 {[%clk 0:01:32]}  Kc7 {[%clk 0:01:28]} 25. Re6 {[%clk 0:01:33]}  Rd8 {[%clk 0:01:24]} 26. Re7+ {[%clk 0:01:29]}  Rd7 {[%clk 0:01:17]} 27. Rxd7+ {[%clk 0:01:29]}  Kxd7 {[%clk 0:01:17]} 28. Kf2 {[%clk 0:01:30]}  Kd6 {[%clk 0:01:17]} 29. Ke3 {[%clk 0:01:28]}  Kd5 {[%clk 0:01:17]} 30. a4 {[%clk 0:01:22]}  c5 {[%clk 0:01:17]} 31. b3 {[%clk 0:01:15]}  c4 {[%clk 0:01:15]} 32. b4 {[%clk 0:01:09]}  g6 {[%clk 0:01:09]} 33. c3 {[%clk 0:01:06]}  h6 {[%clk 0:01:09]} 34. h4 {[%clk 0:00:52]}  Kd6 {[%clk 0:01:01]} 35. Ke4 {[%clk 0:00:49]}  Ke6 {[%clk 0:01:01]} 36. a5 {[%clk 0:00:49]}  bxa5 {[%clk 0:01:01]} 37. bxa5 {[%clk 0:00:50]}  Kd6 {[%clk 0:01:01]} 38. a6 {[%clk 0:00:50]}  Kc6 {[%clk 0:01:01]} 39. Kxe5 {[%clk 0:00:50]}  Kb6 {[%clk 0:01:02]} 40. Kd4 {[%clk 0:00:49]}  Kxa6 {[%clk 0:01:02]} 41. Kxc4 {[%clk 0:00:49]}  Kb6 {[%clk 0:01:02]} 42. Kd4 {[%clk 0:00:49]}  Kc6 {[%clk 0:01:02]} 43. Ke5 {[%clk 0:00:50]}  Kc5 {[%clk 0:01:02]} 44. Kf6 {[%clk 0:00:50]}  g5 {[%clk 0:01:00]} 45. hxg5 {[%clk 0:00:51]}  hxg5 {[%clk 0:01:00]} 46. Kxg5 {[%clk 0:00:52]}  Kc4 {[%clk 0:01:01]} 47. Kf6 {[%clk 0:00:52]}  Kxc3 {[%clk 0:01:01]} 48. g4 {[%clk 0:00:53]}  Kd4 {[%clk 0:01:02]} 49. g5 {[%clk 0:00:54]}  Ke4 {[%clk 0:01:03]} 50. g6 {[%clk 0:00:55]} 1-0


[Site "https://www.chess.com"]

[Event "Titled Tuesday Blitz January 10 Early 2023"]
[White "surrenderPLS"]
[Black "Vargas, Mauricio"]
[BlackFideId "4404572"]
[WhiteElo "2533"]
[BlackElo "2035"]
[Result "0-1"]
[Round "01"]
[TimeControl "180+2"]
[Date "2023.01.10"]
[WhiteClock "0:00:01"]
[BlackClock "0:00:22"]

1. e4 {[%clk 0:02:59]}  c6 {[%clk 0:02:48]} 2. d4 {[%clk 0:02:58]}  d5 {[%clk 0:02:48]} 3. e5 {[%clk 0:02:56]}  Bf5 {[%clk 0:02:47]} 4. h4 {[%clk 0:02:56]}  h6 {[%clk 0:02:45]} 5. g4 {[%clk 0:02:54]}  Bh7 {[%clk 0:02:44]} 6. e6 {[%clk 0:02:53]}  Qd6 {[%clk 0:02:43]} 7. exf7+ {[%clk 0:02:53]}  Kxf7 {[%clk 0:02:42]} 8. Nf3 {[%clk 0:02:48]}  Nd7 {[%clk 0:02:37]} 9. Bd3 {[%clk 0:02:44]}  Ngf6 {[%clk 0:02:32]} 10. g5 {[%clk 0:02:39]}  Ne4 {[%clk 0:02:30]} 11. h5 {[%clk 0:02:21]}  Bf5 {[%clk 0:02:16]} 12. g6+ {[%clk 0:02:19]}  Ke8 {[%clk 0:02:14]} 13. Qe2 {[%clk 0:01:51]}  e6 {[%clk 0:01:58]} 14. Nbd2 {[%clk 0:01:49]}  Ndf6 {[%clk 0:01:48]} 15. Ne5 {[%clk 0:01:45]}  Rg8 {[%clk 0:01:42]} 16. Ndf3 {[%clk 0:00:42]}  Be7 {[%clk 0:01:40]} 17. Bf4 {[%clk 0:00:28]}  Qb4+ {[%clk 0:01:32]} 18. c3 {[%clk 0:00:27]}  Nxc3 {[%clk 0:01:12]} 19. Qd2 {[%clk 0:00:16]}  Nxa2 {[%clk 0:00:43]} 20. Qxb4 {[%clk 0:00:09]}  Nxb4 {[%clk 0:00:43]} 21. Bxf5 {[%clk 0:00:09]}  exf5 {[%clk 0:00:42]} 22. Ke2 {[%clk 0:00:10]}  Ne4 {[%clk 0:00:27]} 23. Nh4 {[%clk 0:00:04]}  Nd6 {[%clk 0:00:23]} 24. Nd3 {[%clk 0:00:01]}  Nc2 {[%clk 0:00:22]} 0-1


[Site "https://www.chess.com"]

[Event "Titled Tuesday Blitz January 10 Early 2023"]
[White "Lymar, Vladislav"]
[Black "Mohammadian, Mohammad"]
[WhiteFideId "14162180"]
[BlackFideId "12566055"]
[WhiteElo "2119"]
[BlackElo "1398"]
[Result "1-0"]
[Round "01"]
[TimeControl "180+2"]
[Date "2023.01.10"]
[WhiteClock "0:00:55"]
[BlackClock "0:00:20"]

1. e4 {[%clk 0:03:00]}  e5 {[%clk 0:02:57]} 2. Nf3 {[%clk 0:03:00]}  Nc6 {[%clk 0:02:56]} 3. Nc3 {[%clk 0:03:00]}  Nf6 {[%clk 0:02:55]} 4. a3 {[%clk 0:02:59]}  d6 {[%clk 0:02:54]} 5. d4 {[%clk 0:02:58]}  Bg4 {[%clk 0:02:49]} 6. d5 {[%clk 0:02:58]}  Nd4 {[%clk 0:02:48]} 7. Be2 {[%clk 0:02:53]}  Nxe2 {[%clk 0:02:48]} 8. Qxe2 {[%clk 0:02:53]}  Be7 {[%clk 0:02:37]} 9. O-O {[%clk 0:02:50]}  O-O {[%clk 0:02:36]} 10. Be3 {[%clk 0:02:49]}  Qd7 {[%clk 0:02:32]} 11. h3 {[%clk 0:02:47]}  Bh5 {[%clk 0:02:32]} 12. a4 {[%clk 0:02:32]}  a5 {[%clk 0:02:30]} 13. Rad1 {[%clk 0:02:29]}  Rfe8 {[%clk 0:02:25]} 14. Kh2 {[%clk 0:02:22]}  h6 {[%clk 0:02:14]} 15. Rg1 {[%clk 0:02:21]}  Kh8 {[%clk 0:02:12]} 16. g4 {[%clk 0:02:19]}  Bg6 {[%clk 0:02:12]} 17. Bc1 {[%clk 0:02:11]}  b6 {[%clk 0:01:57]} 18. Nh4 {[%clk 0:02:10]}  Bh7 {[%clk 0:01:54]} 19. Nf5 {[%clk 0:02:10]}  Ng8 {[%clk 0:01:42]} 20. Nb5 {[%clk 0:01:58]}  g6 {[%clk 0:01:40]} 21. Nxh6 {[%clk 0:01:55]}  Nxh6 {[%clk 0:01:39]} 22. Bxh6 {[%clk 0:01:56]}  Bf8 {[%clk 0:01:29]} 23. Qe3 {[%clk 0:01:50]}  Kg8 {[%clk 0:01:14]} 24. Bxf8 {[%clk 0:01:44]}  Rxf8 {[%clk 0:01:07]} 25. Qh6 {[%clk 0:01:44]}  f6 {[%clk 0:01:01]} 26. Rd3 {[%clk 0:01:38]}  Rf7 {[%clk 0:00:59]} 27. h4 {[%clk 0:01:23]}  Rg7 {[%clk 0:00:59]} 28. Qd2 {[%clk 0:01:14]}  Kf7 {[%clk 0:00:59]} 29. Rf3 {[%clk 0:01:12]}  Ke7 {[%clk 0:00:54]} 30. g5 {[%clk 0:01:03]}  fxg5 {[%clk 0:00:49]} 31. Qxg5+ {[%clk 0:01:02]}  Ke8 {[%clk 0:00:47]} 32. Qf6 {[%clk 0:01:01]}  Qe7 {[%clk 0:00:38]} 33. Nxc7+ {[%clk 0:01:00]}  Qxc7 {[%clk 0:00:33]} 34. Qf8+ {[%clk 0:00:58]}  Kd7 {[%clk 0:00:30]} 35. Qxg7+ {[%clk 0:00:58]}  Kc8 {[%clk 0:00:30]} 36. Rf8+ {[%clk 0:00:57]}  Kb7 {[%clk 0:00:30]} 37. Qxc7+ {[%clk 0:00:57]}  Kxc7 {[%clk 0:00:29]} 38. Rxa8 {[%clk 0:00:58]}  g5 {[%clk 0:00:30]} 39. Ra7+ {[%clk 0:00:54]}  Kb8 {[%clk 0:00:20]} 40. Rxh7 {[%clk 0:00:55]} 1-0


[Site "https://www.chess.com"]

[Event "Titled Tuesday Blitz January 10 Early 2023"]
[White "Dubov, Daniil"]
[Black "Ordekalog"]
[WhiteFideId "24126055"]
[WhiteElo "2708"]
[BlackElo "2635"]
[Result "1-0"]
[Round "02"]
[TimeControl "180+2"]
[Date "2023.01.10"]
[WhiteClock "0:01:17"]
[BlackClock "0:00:01"]

1. d4 {[%clk 0:03:00]}  d5 {[%clk 0:02:59]} 2. Nf3 {[%clk 0:03:01]}  e6 {[%clk 0:02:57]} 3. Bg5 {[%clk 0:03:01]}  Be7 {[%clk 0:02:56]} 4. Bxe7 {[%clk 0:03:01]}  Nxe7 {[%clk 0:02:56]} 5. Nbd2 {[%clk 0:03:02]}  c5 {[%clk 0:02:54]} 6. dxc5 {[%clk 0:03:02]}  Qa5 {[%clk 0:02:50]} 7. c3 {[%clk 0:02:59]}  Qxc5 {[%clk 0:02:49]} 8. e4 {[%clk 0:03:00]}  O-O {[%clk 0:02:47]} 9. Bd3 {[%clk 0:03:00]}  Nbc6 {[%clk 0:02:45]} 10. O-O {[%clk 0:03:00]}  e5 {[%clk 0:02:42]} 11. Re1 {[%clk 0:02:57]}  Bg4 {[%clk 0:02:41]} 12. Qa4 {[%clk 0:02:39]}  Bh5 {[%clk 0:02:24]} 13. Rad1 {[%clk 0:02:33]}  Rad8 {[%clk 0:02:22]} 14. exd5 {[%clk 0:02:31]}  Qxd5 {[%clk 0:02:12]} 15. Nc4 {[%clk 0:02:05]}  Bxf3 {[%clk 0:01:25]} 16. Ne3 {[%clk 0:01:50]}  Qe6 {[%clk 0:01:16]} 17. gxf3 {[%clk 0:01:49]}  Rxd3 {[%clk 0:01:05]} 18. Rxd3 {[%clk 0:01:46]}  Qg6+ {[%clk 0:01:05]} 19. Qg4 {[%clk 0:01:46]}  Qxd3 {[%clk 0:01:05]} 20. Rd1 {[%clk 0:01:46]}  Qg6 {[%clk 0:01:03]} 21. Rd7 {[%clk 0:01:47]}  b6 {[%clk 0:00:40]} 22. b4 {[%clk 0:01:44]}  a6 {[%clk 0:00:34]} 23. a4 {[%clk 0:01:42]}  Rd8 {[%clk 0:00:15]} 24. Rc7 {[%clk 0:01:39]}  b5 {[%clk 0:00:10]} 25. a5 {[%clk 0:01:39]}  h5 {[%clk 0:00:04]} 26. Qxg6 {[%clk 0:01:39]}  fxg6 {[%clk 0:00:05]} 27. Rb7 {[%clk 0:01:39]}  Ra8 {[%clk 0:00:02]} 28. c4 {[%clk 0:01:23]}  bxc4 {[%clk 0:00:03]} 29. Nxc4 {[%clk 0:01:23]}  Kf7 {[%clk 0:00:03]} 30. Nd6+ {[%clk 0:01:19]}  Ke6 {[%clk 0:00:03]} 31. Ne4 {[%clk 0:01:20]}  Ra7 {[%clk 0:00:03]} 32. Nc5+ {[%clk 0:01:20]}  Kd6 {[%clk 0:00:03]} 33. Rb6 {[%clk 0:01:21]}  Kd5 {[%clk 0:00:02]} 34. Nxa6 {[%clk 0:01:19]}  Nf5 {[%clk 0:00:01]} 35. Rb5+ {[%clk 0:01:17]}  Kd4 {[%clk 0:00:01]} 36. Nc5 {[%clk 0:01:16]}  Nxb4 {[%clk 0:00:01]} 37. Ne6+ {[%clk 0:01:16]}  Kc4 {[%clk 0:00:01]} 38. Rc5+ {[%clk 0:01:16]}  Kb3 {[%clk 0:00:01]} 39. Rxe5 {[%clk 0:01:17]} 1-0


[Site "https://www.chess.com"]

[Event "Titled Tuesday Blitz January 10 Early 2023"]
[White "Nepomniachtchi, Ian"]
[Black "Barrientos, Sergio E"]
[WhiteFideId "4168119"]
[BlackFideId "4401824"]
[WhiteElo "2794"]
[BlackElo "2479"]
[Result "1-0"]
[Round "02"]
[TimeControl "180+2"]
[Date "2023.01.10"]
[WhiteClock "0:01:40"]
[BlackClock "0:00:24"]

1. e4 {[%clk 0:03:00]}  c5 {[%clk 0:02:48]} 2. Nf3 {[%clk 0:03:00]}  d6 {[%clk 0:02:48]} 3. d4 {[%clk 0:03:00]}  Nf6 {[%clk 0:02:46]} 4. Nc3 {[%clk 0:02:59]}  cxd4 {[%clk 0:02:45]} 5. Nxd4 {[%clk 0:03:00]}  g6 {[%clk 0:02:44]} 6. f3 {[%clk 0:02:59]}  a6 {[%clk 0:02:44]} 7. Be3 {[%clk 0:02:59]}  Nbd7 {[%clk 0:02:44]} 8. Bc4 {[%clk 0:02:56]}  b5 {[%clk 0:02:44]} 9. Bb3 {[%clk 0:02:56]}  Bb7 {[%clk 0:02:44]} 10. Qd2 {[%clk 0:02:54]}  Bg7 {[%clk 0:02:35]} 11. Bh6 {[%clk 0:02:53]}  Bxh6 {[%clk 0:02:33]} 12. Qxh6 {[%clk 0:02:54]}  Rc8 {[%clk 0:02:29]} 13. O-O-O {[%clk 0:02:52]}  Rxc3 {[%clk 0:02:24]} 14. bxc3 {[%clk 0:02:50]}  Qc7 {[%clk 0:02:24]} 15. Kb2 {[%clk 0:02:33]}  Ne5 {[%clk 0:02:16]} 16. Rhe1 {[%clk 0:02:31]}  Nfd7 {[%clk 0:01:52]} 17. f4 {[%clk 0:02:27]}  Nc4+ {[%clk 0:01:50]} 18. Bxc4 {[%clk 0:02:23]}  Qxc4 {[%clk 0:01:51]} 19. Qg7 {[%clk 0:02:18]}  Rf8 {[%clk 0:01:50]} 20. e5 {[%clk 0:02:14]}  dxe5 {[%clk 0:01:43]} 21. Nb3 {[%clk 0:02:05]}  Nb6 {[%clk 0:01:35]} 22. Qxe5 {[%clk 0:02:03]}  Na4+ {[%clk 0:01:35]} 23. Kc1 {[%clk 0:02:03]}  e6 {[%clk 0:01:21]} 24. Qd6 {[%clk 0:01:48]}  Qc8 {[%clk 0:01:17]} 25. Re3 {[%clk 0:01:46]}  Nxc3 {[%clk 0:00:25]} 26. Rxc3 {[%clk 0:01:43]}  Qxc3 {[%clk 0:00:24]} 27. Qd7# {[%clk 0:01:40]} 1-0


[Site "https://www.chess.com"]

[Event "Titled Tuesday Blitz January 10 Early 2023"]
[White "Lewtak, Damian"]
[Black "Sadhwani, Raunak"]
[WhiteFideId "1141724"]
[BlackFideId "35093487"]
[WhiteElo "2381"]
[BlackElo "2627"]
[Result "1/2-1/2"]
[Round "02"]
[TimeControl "180+2"]
[Date "2023.01.10"]
[WhiteClock "0:00:08"]
[BlackClock "0:00:10"]

1. e4 {[%clk 0:03:00]}  d6 {[%clk 0:02:58]} 2. Nc3 {[%clk 0:02:59]}  g6 {[%clk 0:02:59]} 3. d4 {[%clk 0:03:00]}  Bg7 {[%clk 0:03:00]} 4. Be3 {[%clk 0:02:56]}  c6 {[%clk 0:03:00]} 5. Qd2 {[%clk 0:02:55]}  b5 {[%clk 0:02:59]} 6. a3 {[%clk 0:02:54]}  Nd7 {[%clk 0:02:59]} 7. h4 {[%clk 0:02:54]}  h5 {[%clk 0:02:55]} 8. d5 {[%clk 0:02:49]}  cxd5 {[%clk 0:02:47]} 9. Qxd5 {[%clk 0:02:35]}  Rb8 {[%clk 0:02:40]} 10. Bxa7 {[%clk 0:02:33]}  Ngf6 {[%clk 0:02:38]} 11. Qd2 {[%clk 0:02:25]}  b4 {[%clk 0:02:31]} 12. Nb5 {[%clk 0:01:53]}  Rb7 {[%clk 0:01:51]} 13. Qxb4 {[%clk 0:01:52]}  Ne5 {[%clk 0:01:43]} 14. Be3 {[%clk 0:01:40]}  O-O {[%clk 0:01:42]} 15. Be2 {[%clk 0:01:34]}  Bd7 {[%clk 0:01:36]} 16. Nf3 {[%clk 0:01:19]}  Nc6 {[%clk 0:01:15]} 17. Qb3 {[%clk 0:01:19]}  Nxe4 {[%clk 0:01:08]} 18. a4 {[%clk 0:01:03]}  Qa5+ {[%clk 0:00:58]} 19. c3 {[%clk 0:00:53]}  Nf6 {[%clk 0:00:53]} 20. O-O {[%clk 0:00:52]}  Ng4 {[%clk 0:00:53]} 21. Bg5 {[%clk 0:00:50]}  Na7 {[%clk 0:00:41]} 22. c4 {[%clk 0:00:46]}  Nc6 {[%clk 0:00:40]} 23. Bd2 {[%clk 0:00:45]}  Qd8 {[%clk 0:00:38]} 24. Bc3 {[%clk 0:00:45]}  Nf6 {[%clk 0:00:35]} 25. Qc2 {[%clk 0:00:42]}  Qa8 {[%clk 0:00:32]} 26. a5 {[%clk 0:00:40]}  Rc8 {[%clk 0:00:32]} 27. a6 {[%clk 0:00:39]}  Rb6 {[%clk 0:00:33]} 28. Qa4 {[%clk 0:00:38]}  Ne4 {[%clk 0:00:26]} 29. Bxg7 {[%clk 0:00:36]}  Kxg7 {[%clk 0:00:27]} 30. a7 {[%clk 0:00:32]}  Rb7 {[%clk 0:00:27]} 31. Qa3 {[%clk 0:00:27]}  Bg4 {[%clk 0:00:25]} 32. Rfe1 {[%clk 0:00:27]}  Nc5 {[%clk 0:00:25]} 33. Qc3+ {[%clk 0:00:26]}  Kg8 {[%clk 0:00:25]} 34. b4 {[%clk 0:00:26]}  Ne4 {[%clk 0:00:25]} 35. Qe3 {[%clk 0:00:27]}  Nf6 {[%clk 0:00:25]} 36. Reb1 {[%clk 0:00:26]}  Nd7 {[%clk 0:00:23]} 37. Nfd4 {[%clk 0:00:25]}  Nxd4 {[%clk 0:00:22]} 38. Bxg4 {[%clk 0:00:20]}  Nc2 {[%clk 0:00:22]} 39. Qxe7 {[%clk 0:00:19]}  hxg4 {[%clk 0:00:17]} 40. Ra2 {[%clk 0:00:14]}  Ne5 {[%clk 0:00:17]} 41. Qxd6 {[%clk 0:00:09]}  Nxc4 {[%clk 0:00:17]} 42. Qd3 {[%clk 0:00:09]}  N2e3 {[%clk 0:00:12]} 43. fxe3 {[%clk 0:00:07]}  Rxb5 {[%clk 0:00:13]} 44. Rc1 {[%clk 0:00:06]}  Rd5 {[%clk 0:00:13]} 45. Rxc4 {[%clk 0:00:05]}  Rxd3 {[%clk 0:00:07]} 46. Rxc8+ {[%clk 0:00:05]}  Qxc8 {[%clk 0:00:08]} 47. a8=Q {[%clk 0:00:05]}  Qxa8 {[%clk 0:00:09]} 48. Rxa8+ {[%clk 0:00:06]}  Kg7 {[%clk 0:00:09]} 49. Re8 {[%clk 0:00:06]}  g3 {[%clk 0:00:09]} 50. Kf1 {[%clk 0:00:06]}  Rd2 {[%clk 0:00:10]} 51. Re4 {[%clk 0:00:06]}  Rf2+ {[%clk 0:00:10]} 52. Kg1 {[%clk 0:00:06]}  Rb2 {[%clk 0:00:11]} 53. Kf1 {[%clk 0:00:06]}  f5 {[%clk 0:00:08]} 54. Rc4 {[%clk 0:00:06]}  Kh6 {[%clk 0:00:07]} 55. e4 {[%clk 0:00:06]}  Rf2+ {[%clk 0:00:05]} 56. Ke1 {[%clk 0:00:04]}  Rxg2 {[%clk 0:00:04]} 57. exf5 {[%clk 0:00:04]}  gxf5 {[%clk 0:00:05]} 58. Rf4 {[%clk 0:00:04]}  Rb2 {[%clk 0:00:05]} 59. Kf1 {[%clk 0:00:04]}  Kg6 {[%clk 0:00:03]} 60. Kg1 {[%clk 0:00:03]}  Kf6 {[%clk 0:00:03]} 61. Rf3 {[%clk 0:00:03]}  Rxb4 {[%clk 0:00:02]} 62. Rxg3 {[%clk 0:00:04]}  Rxh4 {[%clk 0:00:01]} 63. Ra3 {[%clk 0:00:04]}  Rb4 {[%clk 0:00:01]} 64. Kf2 {[%clk 0:00:04]}  Kg5 {[%clk 0:00:01]} 65. Rc3 {[%clk 0:00:05]}  Kf4 {[%clk 0:00:01]} 66. Ra3 {[%clk 0:00:05]}  Kg4 {[%clk 0:00:01]} 67. Rc3 {[%clk 0:00:04]}  f4 {[%clk 0:00:02]} 68. Ra3 {[%clk 0:00:02]}  Rb2+ {[%clk 0:00:03]} 69. Kf1 {[%clk 0:00:02]}  Rd2 {[%clk 0:00:03]} 70. Rc3 {[%clk 0:00:03]}  Rd5 {[%clk 0:00:04]} 71. Rb3 {[%clk 0:00:03]}  Rh5 {[%clk 0:00:05]} 72. Rc3 {[%clk 0:00:04]}  Rh2 {[%clk 0:00:05]} 73. Rb3 {[%clk 0:00:04]}  Kf5 {[%clk 0:00:06]} 74. Rc3 {[%clk 0:00:04]}  Ke4 {[%clk 0:00:07]} 75. Rb3 {[%clk 0:00:05]}  Rc2 {[%clk 0:00:07]} 76. Ra3 {[%clk 0:00:05]}  f3 {[%clk 0:00:07]} 77. Ra8 {[%clk 0:00:05]}  Kf4 {[%clk 0:00:08]} 78. Rf8+ {[%clk 0:00:05]}  Ke3 {[%clk 0:00:07]} 79. Re8+ {[%clk 0:00:06]}  Kf4 {[%clk 0:00:08]} 80. Rf8+ {[%clk 0:00:07]}  Ke3 {[%clk 0:00:09]} 81. Re8+ {[%clk 0:00:07]}  Kf4 {[%clk 0:00:10]} 82. Rf8+ {[%clk 0:00:08]} 1/2-1/2


[Site "https://www.chess.com"]